bitfinex-derivatives/quotes_ETHF0:USTF0_20230903
["timestamp","ask_amount","ask_price","bid_price","bid_amount"]
[1693701233004,3.98920923,1634.4,1634.3,8.4987043]
[1693701233407,11.91577978,1634.4,1634.3,8.4987043]
[1693701236410,3.98920923,1634.4,1634.3,8.4987043]
[1693701236611,11.98299164,1634.4,1634.3,8.4987043]
[1693701237111,0.00917852,1634.4,1634.3,8.4987043]
[1693701261734,0.90556834,1634.4,1634.3,8.4987043]
[1693701262233,1.39862712,1634.4,1634.3,8.4987043]
[1693701263633,0.5022373,1634.4,1634.3,8.4987043]
[1693701263832,0.00917852,1634.4,1634.3,8.4987043]
[1693701285157,0.49476741,1634.4,1634.3,8.4987043]
[1693701300368,0.49476741,1634.4,1634.3,7.5888043]
[1693701300369,3.36193093,1634.4,1634.3,7.5888043]
[1693701300968,0.49476741,1634.4,1634.3,7.5888043]
[1693701302570,0.00917852,1634.4,1634.3,7.5888043]
[1693701305676,2.87634204,1634.4,1634.3,7.5888043]
[1693701311078,0.00917852,1634.4,1634.3,7.5888043]
[1693701312988,8.81146774,1634.4,1634.3,7.5888043]
[1693701314195,0.00917852,1634.4,1634.3,7.5888043]
[1693701331400,8.81175159,1634.4,1634.3,7.5888043]
[1693701333312,0.00917852,1634.4,1634.3,7.5888043]
[1693701336406,0.93754359,1634.4,1634.3,7.5888043]
[1693701336807,1.42111602,1634.4,1634.3,7.5888043]
[1693701344812,4.28827954,1634.4,1634.3,7.5888043]
[1693701345011,1.42111602,1634.4,1634.3,7.5888043]
[1693701345906,0.49275095,1634.4,1634.3,7.5888043]
[1693701346808,0.49275095,1634.4,1634.3,7.5958043]
[1693701348209,8.48824935,1634.4,1634.3,7.5958043]
[1693701351909,8.00467692,1634.4,1634.3,7.5958043]
[1693701352315,13.59758036,1634.4,1634.3,14.34362109]
[1693701352517,15.18919152,1634.6,1634.5,5.509]
[1693701352715,15.18919152,1634.6,1634.5,11.018]
[1693701352909,7.19369312,1634.6,1634.5,17.46217001]
[1693701353110,7.19369312,1634.6,1634.5,20.97277001]
[1693701353818,7.19369312,1634.7,1634.5,20.97277001]
[1693701354114,7.19369312,1634.7,1634.6,5.509]
[1693701354316,7.19369312,1634.7,1634.6,8.0919]
[1693701355513,15.18919152,1634.8,1634.6,8.0919]
[1693701355714,7.19369312,1634.8,1634.7,5.509]
[1693701357508,7.25489312,1634.9,1634.7,5.509]
[1693701357712,7.25489312,1634.9,1634.8,2.5137]
[1693701360115,7.24224644,1634.9,1634.8,2.5137]
[1693701361417,0.0612,1634.9,1634.8,2.5137]
[1693701361812,7.24222099,1634.9,1634.8,2.5137]
[1693701362017,7.24222099,1634.9,1634.8,8.0227]
[1693701364218,13.62324816,1634.9,1634.8,8.0227]
[1693701364421,6.44222717,1634.9,1634.8,8.0227]
[1693701365221,5.64393767,1634.9,1634.8,8.0227]
[1693701367323,0.0612,1634.9,1634.8,8.0227]
[1693701368827,0.0612,1634.9,1634.8,10.4543]
[1693701369428,6.87191601,1635.1,1634.8,10.4543]
[1693701369726,0.49088884,1635.1,1634.8,10.4543]
[1693701369930,11.09173767,1635.2,1634.8,10.4543]
[1693701370121,2.26993648,1635.1,1634.8,10.4543]
[1693701371029,2.26993648,1635.1,1634.9,0.9099]
[1693701371531,11.09173767,1635.2,1635.0,5.0383]
[1693701371731,11.57152523,1635.2,1635.0,5.0383]
[1693701371929,6.06252523,1635.2,1635.0,5.0383]
[1693701372133,8.92968875,1635.2,1635.0,5.0383]
[1693701372729,6.06252523,1635.2,1635.0,5.0383]
[1693701373523,0.47978756,1635.2,1635.0,5.0383]
[1693701373728,13.60567415,1635.3,1635.1,0.9099]
[1693701374231,13.60567415,1635.3,1635.2,2.6266]
[1693701374424,16.47283767,1635.3,1635.2,2.6266]
[1693701376324,10.8901,1635.3,1635.2,2.6266]
[1693701376527,8.02293648,1635.3,1635.2,2.6266]
[1693701376829,18.07112099,1635.3,1635.2,2.6266]
[1693701377327,18.56113866,1635.3,1635.2,2.6266]
[1693701377731,15.69397514,1635.3,1635.2,2.6266]
[1693701379426,8.51295415,1635.3,1635.2,2.6266]
[1693701380027,16.49189464,1635.3,1635.2,2.6266]
[1693701380328,19.35905816,1635.3,1635.2,2.6266]
[1693701380528,19.35345694,1635.3,1635.2,2.6266]
[1693701381024,16.48629342,1635.3,1635.2,2.6266]
[1693701381828,16.48629342,1635.3,1635.2,5.1185]
[1693701383131,19.35345694,1635.3,1635.2,5.1185]
[1693701383527,25.73366469,1635.3,1635.2,5.1185]
[1693701383727,26.37725911,1635.3,1635.2,5.1185]
[1693701384533,27.17478508,1635.3,1635.2,5.1185]
[1693701384830,24.30762156,1635.3,1635.2,5.1185]
[1693701386538,15.69068787,1635.3,1635.2,5.1185]
[1693701388137,7.91175139,1635.3,1635.2,10.6275]
[1693701388735,22.39391491,1635.3,1635.2,2.6266]
[1693701388935,15.21618119,1635.3,1635.2,2.6266]
[1693701389139,23.18952046,1635.3,1635.2,2.6266]
[1693701390642,23.83565979,1635.3,1635.2,2.6266]
[1693701400348,23.59165979,1635.3,1635.2,2.6266]
[1693701400551,14.97218119,1635.3,1635.2,2.6266]
[1693701401551,12.10501767,1635.3,1635.2,2.6266]
[1693701402059,14.97218119,1635.3,1635.2,2.6266]
[1693701402562,23.59165979,1635.3,1635.2,2.6266]
[1693701407064,32.36233299,1635.3,1635.2,2.6266]
[1693701419773,19.49516947,1635.3,1635.2,3.5365]
[1693701419974,13.74285439,1635.3,1635.2,2.6266]
[1693701420678,3.74285439,1635.3,1635.2,2.6266]
[1693701421971,9.25185439,1635.3,1635.2,2.6266]
[1693701422376,9.25185439,1635.3,1635.2,0.21323761]
[1693701423280,8.37616352,1635.3,1635.2,0.21323761]
[1693701424883,8.87335165,1635.3,1635.2,0.21323761]
[1693701429785,10.0,1635.1,1634.9,2.5113]
[1693701429988,8.37616352,1635.0,1634.9,2.5113]
[1693701430685,10.6461,1635.0,1634.9,2.5113]
[1693701431182,19.2655786,1635.0,1634.9,2.5113]
[1693701431583,10.6461,1635.0,1634.9,2.5113]
[1693701432081,19.2655786,1635.0,1634.9,2.5113]
[1693701432485,10.6461,1635.0,1634.9,2.5113]
[1693701433087,19.2655786,1635.0,1634.9,2.5113]
[1693701433882,10.6461,1635.0,1634.9,2.5113]
[1693701434388,19.2655786,1635.0,1634.9,2.5113]
[1693701435191,10.6461,1635.0,1634.9,2.5113]
[1693701435789,19.2655786,1635.0,1634.9,2.5113]
[1693701436092,10.6461,1635.0,1634.9,2.26017001]
[1693701439598,7.77893648,1635.0,1634.9,2.26017001]
[1693701440100,10.6461,1635.0,1634.9,2.26017001]
[1693701440396,7.77893648,1635.0,1634.9,2.26017001]
[1693701440592,16.56827775,1635.0,1634.9,2.26017001]
[1693701440791,19.43544127,1635.0,1634.9,2.26017001]
[1693701441498,28.05491987,1635.0,1634.9,2.26017001]
[1693701441794,19.43544127,1635.0,1634.9,2.26017001]
[1693701441987,28.05491987,1635.0,1634.9,2.26017001]
[1693701442192,19.43544127,1635.0,1634.9,2.26017001]
[1693701442393,28.05491987,1635.0,1634.9,2.26017001]
[1693701442792,19.43544127,1635.0,1634.9,2.26017001]
[1693701443898,28.05491987,1635.0,1634.9,2.26017001]
[1693701444194,28.5390398,1635.0,1634.9,2.20012287]
[1693701444394,19.74969853,1635.0,1634.9,2.20012287]
[1693701444794,11.13021993,1635.0,1634.9,2.20012287]
[1693701445302,19.74969853,1635.0,1634.9,2.20012287]
[1693701445495,11.13021993,1635.0,1634.9,2.20012287]
[1693701445694,19.74969853,1635.0,1634.9,2.20012287]
[1693701445899,11.13021993,1635.0,1634.9,2.20012287]
[1693701446195,11.13021993,1635.0,1634.9,1.98011059]
[1693701446595,19.74969853,1635.0,1634.9,1.98011059]
[1693701447001,11.13021993,1635.0,1634.9,1.98011059]
[1693701447196,19.74969853,1635.0,1634.9,1.98011059]
[1693701447503,11.13021993,1635.0,1634.9,1.98011059]
[1693701448097,19.74969853,1635.0,1634.9,1.98011059]
[1693701449301,11.13021993,1635.0,1634.9,1.98011059]
[1693701449601,19.74969853,1635.0,1634.9,1.98011059]
[1693701449792,11.13021993,1635.0,1634.9,1.98011059]
[1693701450197,19.74969853,1635.0,1634.9,1.98011059]
[1693701450396,11.13021993,1635.0,1634.9,1.98011059]
[1693701450891,19.74969853,1635.0,1634.9,1.98011059]
[1693701451091,11.13021993,1635.0,1634.9,1.98011059]
[1693701451292,19.74969853,1635.0,1634.9,1.98011059]
[1693701451696,11.13021993,1635.0,1634.9,1.98011059]
[1693701451898,19.74969853,1635.0,1634.9,1.98011059]
[1693701452099,11.13021993,1635.0,1634.9,1.98011059]
[1693701458207,8.26305641,1635.0,1634.9,1.98011059]
[1693701459105,11.13021993,1635.0,1634.9,1.98011059]
[1693701463217,8.26305641,1635.0,1634.9,1.98011059]
[1693701463615,8.26305641,1635.0,1634.9,4.38821059]
[1693701464023,11.13021993,1635.0,1634.9,4.38821059]
[1693701464518,19.74969853,1635.0,1634.9,4.38821059]
[1693701465522,11.13021993,1635.0,1634.9,4.38821059]
[1693701465917,16.88253501,1635.0,1634.9,4.38821059]
[1693701466512,8.26305641,1635.0,1634.9,4.38821059]
[1693701466912,17.05239768,1635.0,1634.9,4.38821059]
[1693701467114,25.67187628,1635.0,1634.9,4.38821059]
[1693701467519,17.05239768,1635.0,1634.9,4.38821059]
[1693701467915,25.67187628,1635.0,1634.9,4.38821059]
[1693701468116,17.05239768,1635.0,1634.9,4.38821059]
[1693701468516,28.5390398,1635.0,1634.9,4.38821059]
[1693701468916,19.9195612,1635.0,1634.9,4.38821059]
[1693701469116,28.5390398,1635.0,1634.9,4.38821059]
[1693701469723,19.9195612,1635.0,1634.9,4.38821059]
[1693701470425,28.5390398,1635.0,1634.9,4.38821059]
[1693701470931,19.9195612,1635.0,1634.9,4.38821059]
[1693701471125,28.5390398,1635.0,1634.9,4.38821059]
[1693701471420,19.9195612,1635.0,1634.9,4.38821059]
[1693701471618,28.5390398,1635.0,1634.9,4.38821059]
[1693701472722,19.9195612,1635.0,1634.9,4.38821059]
[1693701472921,28.5390398,1635.0,1634.9,4.38821059]
[1693701473429,19.9195612,1635.0,1634.9,4.38821059]
[1693701473729,11.13021993,1635.0,1634.9,3.94938954]
[1693701482532,19.74969853,1635.0,1634.9,3.94938954]
[1693701482738,11.13021993,1635.0,1634.9,3.94938954]
[1693701482938,19.74969853,1635.0,1634.9,3.94938954]
[1693701483237,11.13021993,1635.0,1634.9,3.94938954]
[1693701483732,19.74969853,1635.0,1634.9,3.94938954]
[1693701484130,11.13021993,1635.0,1634.9,3.94938954]
[1693701484338,19.74969853,1635.0,1634.9,3.94938954]
[1693701484530,11.13021993,1635.0,1634.9,3.94938954]
[1693701484729,19.74969853,1635.0,1634.9,3.94938954]
[1693701485138,11.13021993,1635.0,1634.9,3.94938954]
[1693701485333,19.74969853,1635.0,1634.9,3.94938954]
[1693701485932,11.13021993,1635.0,1634.9,3.94938954]
[1693701486137,19.74969853,1635.0,1634.9,3.94938954]
[1693701486530,11.13021993,1635.0,1634.9,3.94938954]
[1693701486740,19.74969853,1635.0,1634.9,3.94938954]
[1693701487038,11.13021993,1635.0,1634.9,3.94938954]
[1693701487635,19.74969853,1635.0,1634.9,3.94938954]
[1693701488238,11.13021993,1635.0,1634.9,3.94938954]
[1693701488440,19.74969853,1635.0,1634.9,3.94938954]
[1693701488639,11.13021993,1635.0,1634.9,3.94938954]
[1693701488935,11.13021993,1635.0,1634.9,3.55445059]
[1693701489143,19.74969853,1635.0,1634.9,3.55445059]
[1693701489643,11.13021993,1635.0,1634.9,3.55445059]
[1693701496938,19.74969853,1635.0,1634.9,3.55445059]
[1693701497342,11.13021993,1635.0,1634.9,3.55445059]
[1693701497847,19.74969853,1635.0,1634.9,3.55445059]
[1693701498444,11.13021993,1635.0,1634.9,3.55445059]
[1693701498844,19.74969853,1635.0,1634.9,3.55445059]
[1693701499446,11.13021993,1635.0,1634.9,3.55445059]
[1693701499648,19.74969853,1635.0,1634.9,3.55445059]
[1693701499840,11.13021993,1635.0,1634.9,3.55445059]
[1693701500144,19.74969853,1635.0,1634.9,3.55445059]
[1693701500646,11.13021993,1635.0,1634.9,3.55445059]
[1693701501641,19.74969853,1635.0,1634.9,3.55445059]
[1693701502045,11.13021993,1635.0,1634.9,3.55445059]
[1693701502442,19.74969853,1635.0,1634.9,3.55445059]
[1693701502647,11.13021993,1635.0,1634.9,3.55445059]
[1693701503750,28.7559562,1635.0,1634.9,3.55445059]
[1693701505148,15.3827,1634.9,1633.8,4.60645165]
[1693701505352,6.40559609,1634.3,1634.0,5.509]
[1693701505548,6.40559609,1634.3,1634.2,5.509]
[1693701505955,6.40559609,1634.3,1634.2,12.4037341]
[1693701508358,6.40559609,1634.3,1634.2,14.8999341]
[1693701511858,7.2062956,1634.4,1634.2,14.8999341]
[1693701512059,7.2062956,1634.4,1634.3,5.509]
[1693701512253,7.2062956,1634.4,1634.3,7.9066]
[1693701513955,10.07345912,1634.4,1634.3,7.9066]
[1693701514558,7.2062956,1634.4,1634.3,7.9066]
[1693701519174,10.75929345,1634.5,1634.3,7.9066]
[1693701519374,7.2079775,1634.4,1634.3,2.3976]
[1693701519574,7.2079775,1634.4,1634.3,7.9066]
[1693701524484,10.07514102,1634.4,1634.3,7.9066]
[1693701524685,7.2079775,1634.4,1634.3,7.9066]
[1693701526882,0.92490023,1634.7,1634.5,5.509]
[1693701527187,15.22022462,1635.1,1634.6,5.509]
[1693701527188,17.62494681,1634.9,1634.6,5.509]
[1693701527482,44.40352462,1635.1,1634.8,5.509]
[1693701527483,17.62494681,1635.0,1634.8,5.509]
[1693701527679,16.58739396,1635.1,1634.8,5.509]
[1693701527886,8.27987288,1635.1,1634.9,2.4704]
[1693701528676,11.1470364,1635.1,1634.9,2.4704]
[1693701528980,26.50204673,1635.1,1634.9,2.4704]
[1693701529880,8.87709992,1635.1,1634.9,2.4704]
[1693701531986,3.36809992,1635.1,1634.9,7.9794]
[1693701536091,3.36809992,1635.1,1634.9,8.8893]
[1693701537697,0.5009364,1635.1,1634.9,8.8893]
[1693701537996,35.40388329,1635.2,1634.9,8.8893]
[1693701539399,33.13394681,1635.2,1634.9,8.8893]
[1693701539600,33.13394681,1635.2,1635.0,2.6023]
[1693701539994,17.62494681,1635.1,1635.0,2.6023]
[1693701540198,15.509,1635.2,1635.0,2.6023]
[1693701540799,5.509,1635.2,1635.0,2.6023]
[1693701540995,8.37616352,1635.2,1635.0,2.6023]
[1693701541200,18.37616352,1635.2,1635.0,2.6023]
[1693701541393,18.87134449,1635.2,1635.0,2.6023]
[1693701542501,36.4962913,1635.2,1635.0,2.6023]
[1693701545399,17.62494681,1635.1,1635.0,2.6023]
[1693701545604,36.4962913,1635.2,1635.0,2.6023]
[1693701548704,36.4962913,1635.2,1635.1,2.5435]
[1693701551903,26.4962913,1635.2,1635.1,2.5435]
[1693701552105,18.87134449,1635.2,1635.1,2.5435]
[1693701552306,36.4962913,1635.2,1635.1,2.5435]
[1693701553808,26.4962913,1635.2,1635.1,2.5435]
[1693701554107,8.87134449,1635.2,1635.1,2.5435]
[1693701555609,18.87134449,1635.2,1635.1,2.5435]
[1693701555908,36.4962913,1635.2,1635.1,2.5435]
[1693701557312,26.4962913,1635.2,1635.1,2.5435]
[1693701557513,6.00418097,1635.2,1635.1,2.5435]
[1693701558614,16.00418097,1635.2,1635.1,2.5435]
[1693701558805,33.62912778,1635.2,1635.1,2.5435]
[1693701559006,36.4962913,1635.2,1635.1,2.5435]
[1693701559707,26.4962913,1635.2,1635.1,2.5435]
[1693701559908,18.87134449,1635.2,1635.1,2.5435]
[1693701560106,36.4962913,1635.2,1635.1,2.5435]
[1693701560602,26.4962913,1635.2,1635.1,2.5435]
[1693701560806,18.87134449,1635.2,1635.1,2.5435]
[1693701561007,36.4962913,1635.2,1635.1,2.5435]
[1693701561307,26.4962913,1635.2,1635.1,2.5435]
[1693701561613,18.87134449,1635.2,1635.1,2.5435]
[1693701561810,36.4962913,1635.2,1635.1,2.5435]
[1693701563319,26.4962913,1635.2,1635.1,2.5435]
[1693701563513,18.87134449,1635.2,1635.1,2.5435]
[1693701563710,36.4962913,1635.2,1635.1,2.5435]
[1693701565222,18.87134449,1635.2,1635.1,2.5435]
[1693701569125,8.87134449,1635.2,1635.1,2.5435]
[1693701569331,18.87134449,1635.2,1635.1,2.5435]
[1693701569932,8.87134449,1635.2,1635.1,2.5435]
[1693701570128,18.87134449,1635.2,1635.1,2.5435]
[1693701571332,8.87134449,1635.2,1635.1,2.5435]
[1693701571533,18.87134449,1635.2,1635.1,2.5435]
[1693701578039,8.87134449,1635.2,1635.1,2.5435]
[1693701578342,18.87134449,1635.2,1635.1,2.5435]
[1693701578644,8.87134449,1635.2,1635.1,2.5435]
[1693701579634,18.87134449,1635.2,1635.1,2.5435]
[1693701582138,8.87134449,1635.2,1635.1,2.5435]
[1693701583041,18.87134449,1635.2,1635.1,2.5435]
[1693701585444,8.87134449,1635.2,1635.1,2.5435]
[1693701585741,18.87134449,1635.2,1635.1,2.5435]
[1693701590246,8.87134449,1635.2,1635.1,2.5435]
[1693701594649,17.67938594,1635.2,1635.1,2.5435]
[1693701595456,27.67938594,1635.2,1635.1,2.5435]
[1693701595650,45.30433275,1635.2,1635.1,2.5435]
[1693701600159,35.30433275,1635.2,1635.1,2.5435]
[1693701600359,17.67938594,1635.2,1635.1,2.5435]
[1693701600660,27.67938594,1635.2,1635.1,2.5435]
[1693701600857,45.30433275,1635.2,1635.1,2.5435]
[1693701601058,35.30433275,1635.2,1635.1,2.5435]
[1693701601358,17.67938594,1635.2,1635.1,2.5435]
[1693701602457,27.67938594,1635.2,1635.1,2.5435]
[1693701602657,45.30433275,1635.2,1635.1,2.5435]
[1693701613461,42.21722673,1635.2,1635.1,2.5435]
[1693701613667,45.08439025,1635.2,1635.1,2.5435]
[1693701616370,35.08439025,1635.2,1635.1,2.5435]
[1693701617262,8.65140199,1635.2,1635.1,2.5435]
[1693701618774,18.65140199,1635.2,1635.1,2.5435]
[1693701618972,36.2763488,1635.2,1635.1,2.5435]
[1693701622685,26.2763488,1635.2,1635.1,2.5435]
[1693701622869,8.65140199,1635.2,1635.1,2.5435]
[1693701623075,18.65140199,1635.2,1635.1,2.5435]
[1693701623374,36.2763488,1635.2,1635.1,2.5435]
[1693701624684,45.08439025,1635.2,1635.1,2.5435]
[1693701627781,35.08439025,1635.2,1635.1,2.5435]
[1693701628176,17.45944344,1635.2,1635.1,2.5435]
[1693701628979,27.45944344,1635.2,1635.1,2.5435]
[1693701629281,45.08439025,1635.2,1635.1,2.5435]
[1693701630087,35.08439025,1635.2,1635.1,2.5435]
[1693701630282,27.45944344,1635.2,1635.1,2.5435]
[1693701630480,45.08439025,1635.2,1635.1,2.5435]
[1693701632882,45.09060427,1635.2,1635.1,2.5435]
[1693701637184,45.09060427,1635.2,1635.1,2.1797768]
[1693701639292,35.09060427,1635.2,1635.1,2.1797768]
[1693701639486,45.09060427,1635.2,1635.1,2.1797768]
[1693701640890,45.09254283,1635.2,1635.1,2.1797768]
[1693701648495,35.09254283,1635.2,1635.1,2.1797768]
[1693701648891,17.46759602,1635.2,1635.1,2.1797768]
[1693701650901,27.46759602,1635.2,1635.1,2.1797768]
[1693701651096,45.09254283,1635.2,1635.1,2.1797768]
[1693701660108,35.09254283,1635.2,1635.1,2.1797768]
[1693701660304,27.46759602,1635.2,1635.1,2.1797768]
[1693701660607,45.09254283,1635.2,1635.1,2.1797768]
[1693701663509,35.09254283,1635.2,1635.1,2.1797768]
[1693701663803,17.46759602,1635.2,1635.1,2.1797768]
[1693701664213,27.46759602,1635.2,1635.1,2.1797768]
[1693701664509,45.09254283,1635.2,1635.1,2.1797768]
[1693701675413,35.09254283,1635.2,1635.1,2.1797768]
[1693701675612,27.46759602,1635.2,1635.1,2.1797768]
[1693701675813,45.09254283,1635.2,1635.1,2.1797768]
[1693701676719,35.09254283,1635.2,1635.1,2.1797768]
[1693701677216,17.46759602,1635.2,1635.1,2.1797768]
[1693701677921,27.46759602,1635.2,1635.1,2.1797768]
[1693701678113,45.09254283,1635.2,1635.1,2.1797768]
[1693701681322,42.22537931,1635.2,1635.1,2.1797768]
[1693701683725,45.09254283,1635.2,1635.1,2.1797768]
[1693701683917,36.28256282,1635.2,1635.1,2.1797768]
[1693701692424,35.06938948,1635.2,1635.1,2.1797768]
[1693701692620,18.65761601,1635.2,1635.1,2.1797768]
[1693701694416,8.65761601,1635.2,1635.1,2.1797768]
[1693701696925,5.79045249,1635.2,1635.1,2.1797768]
[1693701698525,8.65761601,1635.2,1635.1,2.1797768]
[1693701698919,5.79045249,1635.2,1635.1,2.1797768]
[1693701699324,8.65761601,1635.2,1635.1,2.1797768]
[1693701699829,5.79045249,1635.2,1635.1,2.1797768]
[1693701701529,8.65761601,1635.2,1635.1,2.1797768]
[1693701701734,5.79045249,1635.2,1635.1,2.1797768]
[1693701706042,5.79045249,1635.2,1635.1,3.0896768]
[1693701706644,22.20222596,1635.2,1635.1,3.0896768]
[1693701706841,5.79045249,1635.2,1635.1,3.0896768]
[1693701719142,0.28145249,1635.2,1635.1,3.0896768]
[1693701740169,0.28145249,1635.2,1635.1,8.5986768]
[1693701802824,25.3809,1635.0,1634.2,0.91380343]
[1693701803022,25.3809,1635.0,1634.1,2.5297]
[1693701803023,5.509,1634.4,1634.1,2.5297]
[1693701803231,5.1371,1634.3,1634.1,2.5297]
[1693701803729,0.00585524,1634.2,1634.1,2.5297]
[1693701804219,5.51485524,1634.2,1634.1,2.5297]
[1693701804432,12.69520401,1634.2,1634.1,2.5297]
[1693701805526,12.69484034,1634.2,1634.1,2.5297]
[1693701805927,5.51485524,1634.2,1634.1,2.5297]
[1693701808929,5.51485524,1634.2,1633.8,2.98622073]
[1693701809130,5.51485524,1634.2,1633.8,2.5033]
[1693701809131,5.509,1633.9,1633.8,2.5033]
[1693701809435,8.37616352,1633.9,1633.8,2.5033]
[1693701809831,10.65192783,1633.9,1633.8,2.5033]
[1693701811932,5.51482783,1633.9,1633.8,2.5033]
[1693701812130,0.00582783,1633.9,1633.8,2.5033]
[1693701812334,0.00582783,1633.9,1633.8,5.011]
[1693701812925,5.509,1634.0,1633.8,5.011]
[1693701813125,8.37616352,1634.0,1633.8,5.011]
[1693701821750,0.00582783,1633.9,1633.8,5.011]
[1693701839263,2.87299135,1633.9,1633.8,5.011]
[1693701844571,0.00582783,1633.9,1633.8,5.011]
[1693701845174,2.87299135,1633.9,1633.8,5.011]
[1693701848373,8.38199135,1633.9,1633.8,5.011]
[1693701849273,8.38199135,1633.9,1633.8,8.9916623]
[1693701849467,8.38199135,1633.9,1633.8,12.05311136]
[1693701849672,8.38199135,1633.9,1633.8,12.06665932]
[1693701850067,8.38199135,1633.9,1633.8,9.67826194]
[1693701851079,8.38199135,1633.9,1633.8,6.61681288]
[1693701852378,8.38199135,1633.9,1633.8,5.011]
[1693701860492,15.51884696,1633.9,1633.8,5.011]
[1693701861484,23.44868652,1633.9,1633.8,5.011]
[1693701861693,16.31183091,1633.9,1633.8,5.011]
[1693701862497,8.38199135,1633.9,1633.8,5.011]
[1693701863286,8.88392638,1633.9,1633.8,5.011]
[1693701864690,16.869447,1633.9,1633.8,5.011]
[1693701866795,8.88392638,1633.9,1633.8,5.011]
[1693701867698,16.86830776,1633.9,1633.8,5.011]
[1693701872207,8.88392638,1633.9,1633.8,5.011]
[1693701877911,6.01676286,1633.9,1633.8,5.011]
[1693701878808,8.88392638,1633.9,1633.8,5.011]
[1693701891517,6.01676286,1633.9,1633.8,5.011]
[1693701892513,8.88392638,1633.9,1633.8,5.011]
[1693701897020,3.37492638,1633.9,1633.8,5.011]
[1693701898615,0.50776286,1633.9,1633.8,5.011]
[1693701908222,3.37492638,1633.9,1633.8,5.011]
[1693701916736,0.50776286,1633.9,1633.8,5.011]
[1693701917634,0.00582783,1633.9,1633.8,10.52]
[1693701923443,7.99778398,1633.9,1633.8,10.52]
[1693701929341,0.00582783,1633.9,1633.8,10.52]
[1693701929947,7.19578008,1633.9,1633.8,10.52]
[1693701931953,7.19869113,1633.9,1633.8,10.52]
[1693701932646,8.00069503,1633.9,1633.8,10.52]
[1693701939447,7.19691429,1633.9,1633.8,10.52]
[1693701944350,7.69794289,1633.9,1633.8,10.52]
[1693701944952,7.69799285,1633.9,1633.8,10.52]
[1693701946857,7.19696425,1633.9,1633.8,10.52]
[1693701954757,0.00873888,1633.9,1633.8,10.52]
[1693701955160,7.99565595,1633.9,1633.8,10.52]
[1693701961658,15.19015769,1633.9,1633.8,10.52]
[1693701961963,7.20324062,1633.9,1633.8,10.52]
[1693701962460,0.00873888,1633.9,1633.8,10.52]
[1693701963163,7.99565595,1633.9,1633.8,10.52]
[1693701969868,0.00873888,1633.9,1633.8,10.52]
[1693701977076,8.01315559,1633.9,1633.8,10.52]
[1693701978676,8.01329647,1633.9,1633.8,10.52]
[1693701979974,0.00873888,1633.9,1633.8,10.52]
[1693701980280,8.01328215,1633.9,1633.8,10.52]
[1693701980871,0.00873888,1633.9,1633.8,10.52]
[1693701982580,0.49545305,1633.9,1633.8,10.52]
[1693701983175,0.00873888,1633.9,1633.8,10.52]
[1693701985086,8.01282341,1633.9,1633.8,10.52]
[1693701988689,0.00873888,1633.9,1633.8,10.52]
[1693701988989,8.01255304,1633.9,1633.8,10.52]
[1693701992190,0.00873888,1633.9,1633.8,10.52]
[1693701999093,8.01142046,1633.9,1633.8,10.52]
[1693702001994,8.00559263,1633.9,1633.8,10.52]
[1693702002893,8.01107108,1633.9,1633.8,10.52]
[1693702007199,0.0083895,1633.9,1633.8,10.52]
[1693702014097,8.01104952,1633.9,1633.8,10.52]
[1693702021602,8.49526274,1633.9,1633.8,10.52]
[1693702022597,0.0083895,1633.9,1633.8,10.52]
[1693702036020,0.50612111,1633.9,1633.8,10.52]
[1693702037503,8.50987352,1633.9,1633.8,10.52]
[1693702037708,8.01214191,1633.9,1633.8,10.52]
[1693702043415,8.01214191,1633.9,1633.8,17.12472481]
[1693702044717,0.0083895,1633.9,1633.8,17.12472481]
[1693702052421,8.01157056,1633.9,1633.8,17.12472481]
[1693702059827,0.0083895,1633.9,1633.8,17.12472481]
[1693702067636,8.01090566,1633.9,1633.8,17.12472481]
[1693702072740,8.49756786,1633.9,1633.8,17.12472481]
[1693702075245,8.01090566,1633.9,1633.8,17.12472481]
[1693702097271,0.0083895,1633.9,1633.8,17.12472481]
[1693702097471,8.01486276,1633.9,1633.8,17.12472481]
[1693702110268,10.88202628,1633.9,1633.8,17.12472481]
[1693702111878,10.87911523,1633.9,1633.8,11.61572481]
[1693702112080,2.87264197,1633.9,1633.8,11.61572481]
[1693702112874,2.87554129,1633.9,1633.8,11.61572481]
[1693702113080,0.00837777,1633.9,1633.8,11.61572481]
[1693702120083,8.01226121,1633.9,1633.8,11.61572481]
[1693702125483,10.87942473,1633.9,1633.8,11.61572481]
[1693702126775,8.01226121,1633.9,1633.8,11.61572481]
[1693702134696,0.00837777,1633.9,1633.8,11.61572481]
[1693702142091,5.14547777,1633.9,1633.8,8.73935871]
[1693702142295,10.27936868,1633.9,1633.8,8.73935871]
[1693702142692,8.0094322,1633.9,1633.8,8.73935871]
[1693702145394,8.0094322,1633.9,1633.8,11.27215871]
[1693702149803,0.00837777,1633.9,1633.8,11.27215871]
[1693702157506,8.01417555,1633.9,1633.8,11.27215871]
[1693702162015,8.01417555,1633.9,1633.8,16.78115871]
[1693702164921,0.00837777,1633.9,1633.8,16.78115871]
[1693702165621,0.00837777,1633.9,1633.8,14.31091491]
[1693702169224,0.00837777,1633.9,1633.8,16.76451491]
[1693702172622,7.21334852,1633.9,1633.8,16.76451491]
[1693702180133,0.00837777,1633.9,1633.8,16.76451491]
[1693702181824,0.00837777,1633.9,1633.8,11.25551491]
[1693702182030,0.00837777,1633.9,1633.8,16.76451491]
[1693702182834,0.00804074,1633.9,1633.8,16.76451491]
[1693702186937,8.0097591,1633.9,1633.8,16.76451491]
[1693702194743,0.00804074,1633.9,1633.8,16.76451491]
[1693702195447,0.00918076,1634.0,1633.8,16.76451491]
[1693702195746,8.00171836,1634.2,1633.9,5.95149649]
[1693702195942,8.00171836,1634.2,1634.1,5.509]
[1693702196945,8.00919525,1634.2,1634.1,5.509]
[1693702202040,0.00747689,1634.2,1634.1,5.509]
[1693702202642,8.00919525,1634.2,1634.1,5.509]
[1693702206156,10.87635877,1634.2,1634.1,5.509]
[1693702207248,8.00919525,1634.2,1634.1,5.509]
[1693702207651,10.87635877,1634.2,1634.1,5.509]
[1693702210760,10.87635877,1634.2,1634.0,10.88286698]
[1693702210953,10.87635877,1634.2,1634.0,2.4035]
[1693702210954,2.26993648,1634.1,1634.0,2.4035]
[1693702211153,10.27165484,1634.1,1634.0,2.4035]
[1693702211846,10.27912742,1634.1,1634.0,2.4035]
[1693702213960,2.27740906,1634.1,1634.0,2.4035]
[1693702214259,10.26434629,1634.1,1634.0,2.4035]
[1693702214858,2.27740906,1634.1,1634.0,2.4035]